bitfinex-derivatives/quotes_SOLF0:USTF0_20251115
["timestamp","ask_amount","ask_price","bid_price","bid_amount"]
[1763172969269,0.04927635,142.05,142.04,7.28523627]
[1763172970371,0.04927635,142.05,142.04,0.82]
[1763172972281,0.04927635,142.05,142.04,7.3288587]
[1763172972574,3.16927635,142.05,142.04,6.5088587]
[1763172975179,0.04927635,142.05,142.04,7.3288587]
[1763172975382,0.04927635,142.05,142.04,9.3556607]
[1763172975573,3.07,142.07,142.05,0.77]
[1763172975882,6.55196994,142.18,142.06,2.7279674]
[1763172975883,3.12,142.15,142.06,2.7279674]
[1763172976082,3.12,142.15,142.1,6.50281225]
[1763172976381,3.12,142.2,142.11,6.50281225]
[1763172976678,3.12,142.16,142.14,0.04860676]
[1763172978378,0.05060458,142.17,142.14,0.04860676]
[1763172979588,3.17060458,142.17,142.14,0.04860676]
[1763172980684,3.12,142.16,142.08,6.50281225]
[1763172980886,3.12,142.16,142.09,6.50281225]
[1763172981676,3.12,142.13,142.11,0.0487137]
[1763172987391,3.17348673,142.14,142.11,0.0487137]
[1763172987592,0.05348673,142.14,142.11,0.0487137]
[1763172991392,3.17348673,142.14,142.11,0.0487137]
[1763172992298,0.05348673,142.14,142.11,0.0487137]
[1763172994091,3.21348673,142.14,142.11,0.0487137]
[1763172997398,3.16,142.11,141.89,21.13]
[1763172997595,3.16,142.11,142.01,2.7279674]
[1763172997900,3.16,142.13,142.03,2.7279674]
[1763172998295,3.16,142.13,142.07,0.0460153]
[1763172998501,0.04762763,142.09,142.07,0.0460153]
[1763172999193,3.20762763,142.09,142.07,0.0460153]
[1763172999395,0.04762763,142.09,142.07,0.0460153]
[1763173008714,0.04762763,142.09,142.07,2.7739827]
[1763173009014,3.16,142.15,142.08,10.01682922]
[1763173009220,3.16,142.15,142.1,6.46262597]
[1763173009814,0.05219262,142.14,142.11,0.05131027]
[1763173010816,0.05219262,142.14,142.12,6.46262597]
[1763173011018,0.05219262,142.14,142.11,6.51393624]
[1763173018328,0.05219262,142.14,142.12,6.46262597]
[1763173019821,0.05219262,142.14,142.11,6.51393624]
[1763173020623,0.05219262,142.14,142.12,6.46262597]
[1763173020819,3.21219262,142.14,142.11,6.51393624]
[1763173024330,3.31,142.21,142.13,6.46262597]
[1763173024532,3.31,142.21,142.16,6.46262597]
[1763173025633,3.36158724,142.2,142.17,0.04801807]
[1763173026435,0.05158724,142.2,142.17,0.04801807]
[1763173026929,0.05158724,142.2,142.17,6.51064404]
[1763173027125,0.05158724,142.2,142.17,0.04801807]
[1763173027330,0.05158724,142.2,142.17,9.23861144]
[1763173027525,0.05158724,142.2,142.18,6.46262597]
[1763173027834,0.05158724,142.2,142.17,11.39281469]
[1763173027835,0.05158724,142.2,142.19,6.46262597]
[1763173028228,0.05158724,142.2,142.18,6.46262597]
[1763173029037,0.05158724,142.2,142.18,8.61682922]
[1763173029334,0.05158724,142.2,142.19,2.7279674]
[1763173029542,0.05158724,142.2,142.19,4.1279674]
[1763173029839,0.05158724,142.2,142.19,6.45951132]
[1763173030230,0.05158724,142.2,142.18,6.45951132]
[1763173030936,0.05158724,142.2,142.19,6.45951132]
[1763173032039,0.05158724,142.2,142.18,6.45951132]
[1763173033535,0.05158724,142.2,142.17,9.23549679]
[1763173033734,0.05158724,142.2,142.18,6.45951132]
[1763173033929,0.05158724,142.2,142.17,9.23549679]
[1763173034730,0.05158724,142.2,142.17,6.50752939]
[1763173034936,0.05158724,142.2,142.17,1.78958598]
[1763173040945,0.05158724,142.2,142.19,1.74156791]
[1763173047443,0.05158724,142.2,142.19,8.20107923]
[1763173048143,0.05158724,142.2,142.19,1.74156791]
[1763173048344,0.05158724,142.2,142.19,8.20107923]
[1763173050546,3.35,142.27,142.19,11.75839713]
[1763173050745,3.35,142.27,142.18,12.92524383]
[1763173050746,3.35,142.27,142.24,1.74156791]
[1763173051750,3.39486206,142.27,142.24,1.78707061]
[1763173051948,3.39486206,142.27,142.24,8.21672935]
[1763173052146,3.39486206,142.27,142.24,1.78707061]
[1763173052346,3.39486206,142.27,142.24,8.21672935]
[1763173054646,3.39486206,142.27,142.24,1.78707061]
[1763173055451,3.39486206,142.27,142.24,8.21672935]
[1763173055651,3.39486206,142.27,142.26,1.74156791]
[1763173055956,3.39486206,142.27,142.26,8.17122665]
[1763173056150,3.39486206,142.27,142.26,1.74156791]
[1763173060560,3.39486206,142.27,142.26,8.17122665]
[1763173063856,3.39486206,142.27,142.25,8.17122665]
[1763173064756,3.39486206,142.27,142.26,6.42965874]
[1763173066461,3.39486206,142.27,142.26,8.17122665]
[1763173066960,3.39486206,142.27,142.26,1.74156791]
[1763173067156,3.39486206,142.27,142.26,8.17122665]
[1763173067753,6.51486206,142.27,142.24,6.47516144]
[1763173068159,3.12,142.26,142.24,0.0455027]
[1763173071064,3.39486206,142.27,142.24,8.21672935]
[1763173071265,3.39486206,142.27,142.26,1.74156791]
[1763173071467,3.39486206,142.27,142.25,6.42965874]
[1763173071667,3.39486206,142.27,142.26,1.74156791]
[1763173071858,3.39486206,142.27,142.26,6.42965874]
[1763173072059,3.39486206,142.27,142.26,8.17122665]
[1763173072664,3.16486206,142.27,142.26,8.17122665]
[1763173072866,0.04486206,142.27,142.26,1.74156791]
[1763173073665,0.04486206,142.27,142.26,10.35839713]
[1763173074066,3.12,142.32,142.26,10.35839713]
[1763173074264,3.12,142.32,142.24,34.10074653]
[1763173074265,3.12,142.32,142.29,8.16822034]
[1763173074858,3.12,142.35,142.31,1.74156791]
[1763173075060,5.9,142.36,142.31,1.74156791]
[1763173075256,0.04837096,142.34,142.33,1.74156791]
[1763173075462,0.04837096,142.34,142.32,1.79166577]
[1763173077577,0.04837096,142.34,142.32,8.2183182]
[1763173077775,0.04837096,142.34,142.33,6.42665243]
[1763173078476,3.87,142.4,142.32,1.79166577]
[1763173078477,3.87,142.4,142.32,10.40849499]
[1763173078772,6.99,142.4,142.37,1.74156791]
[1763173079176,6.99,142.4,142.33,6.40883721]
[1763173079377,6.99,142.4,142.31,29.74682922]
[1763173079378,6.99,142.4,142.36,1.74156791]
[1763173079675,0.05080423,142.39,142.37,0.05164326]
[1763173080780,3.17080423,142.39,142.37,0.05164326]
[1763173081571,0.05080423,142.39,142.38,1.74156791]
[1763173081767,0.05080423,142.39,142.37,6.46048047]
[1763173081969,0.05080423,142.39,142.38,1.74156791]
[1763173083978,2.78,142.43,142.38,1.74156791]
[1763173084173,3.24,142.5,142.42,1.74156791]
[1763173084475,3.24,142.5,142.46,1.74156791]
[1763173084866,3.29316601,142.49,142.47,0.05129926]
[1763173085266,0.05316601,142.49,142.47,0.05129926]
[1763173085472,3.29316601,142.49,142.47,0.05129926]
[1763173085673,0.05316601,142.49,142.47,0.05129926]
[1763173085977,0.05316601,142.49,142.48,1.74156791]
[1763173088168,2.89,142.56,142.48,1.74156791]
[1763173088368,3.24,142.55,142.46,27.11759082]
[1763173088673,3.24,142.55,142.5,1.74156791]
[1763173088874,3.24,142.55,142.44,6.40883721]
[1763173089073,3.24,142.54,142.47,1.74156791]
[1763173089266,3.24,142.51,142.49,0.04614764]
[1763173090473,0.04523593,142.52,142.49,1.78771555]
[1763173091184,3.25523593,142.52,142.49,1.78771555]
[1763173092575,3.25523593,142.52,142.51,1.74156791]
[1763173093781,0.04523593,142.52,142.51,1.74156791]
[1763173095185,3.25523593,142.52,142.51,1.74156791]
[1763173095380,0.04523593,142.52,142.51,1.74156791]
[1763173096085,3.25523593,142.52,142.51,1.74156791]
[1763173096475,3.25523593,142.52,142.49,0.04614764]
[1763173096476,4.65523593,142.52,142.49,0.04614764]
[1763173096677,3.25523593,142.52,142.48,1.74156791]
[1763173096878,3.21,142.52,142.47,2.710407]
[1763173097689,3.21,142.5,142.48,0.04477327]
[1763173103295,0.04647625,142.51,142.48,2.75518027]
[1763173103592,0.04647625,142.51,142.5,2.710407]
[1763173103987,6.1,142.56,142.5,2.710407]
[1763173104891,6.1,142.56,142.52,0.05065326]
[1763173104892,3.25925577,142.54,142.52,0.05065326]
[1763173105284,0.04925577,142.54,142.52,0.05065326]
[1763173105684,0.04925577,142.54,142.52,2.76106026]
[1763173108200,3.25925577,142.54,142.52,0.05065326]
[1763173113591,4.65925577,142.54,142.52,0.05065326]
[1763173113795,3.06,142.53,142.52,0.05065326]
[1763173114101,3.06,142.53,142.42,6.40883721]
[1763173114102,3.06,142.53,142.46,2.710407]
[1763173114294,3.06,142.53,142.45,2.710407]
[1763173114802,3.06,142.53,142.41,6.40883721]
[1763173115004,2.88,142.59,142.49,2.710407]
[1763173115005,3.06,142.56,142.49,2.710407]
[1763173115201,3.06,142.53,142.51,0.04913488]
[1763173116694,3.06,142.53,142.45,2.710407]
[1763173117810,3.11024894,142.5,142.48,0.04888896]
[1763173118109,3.1126708,142.5,142.48,0.04888896]
[1763173120010,0.0526708,142.5,142.48,0.04888896]
[1763173120911,3.06,142.49,142.48,0.04888896]
[1763173122415,3.06,142.49,142.45,6.40883721]
[1763173123210,3.06,142.49,142.46,6.45507154]
[1763173123814,3.06,142.49,142.46,0.04623433]
[1763173124216,3.06,142.49,142.46,6.45507154]
[1763173126221,0.0526708,142.5,142.47,6.40883721]
[1763173126417,0.0526708,142.5,142.48,6.40883721]
[1763173126418,3.1126708,142.5,142.48,6.40883721]
[1763173127210,3.1126708,142.5,142.49,6.40883721]
[1763173129525,3.1126708,142.5,142.48,8.61682922]
[1763173129526,0.0526708,142.5,142.48,8.61682922]
[1763173130025,3.1126708,142.5,142.49,6.42973257]
[1763173130522,0.0526708,142.5,142.49,6.42973257]
[1763173130724,0.0526708,142.5,142.48,8.61682922]
[1763173131330,0.0526708,142.5,142.49,8.61682922]
[1763173131828,3.06,142.53,142.48,12.92524383]
[1763173132128,3.06,142.53,142.46,0.04623433]
[1763173132129,3.06,142.58,142.51,8.58113717]
[1763173132331,3.06,142.58,142.53,6.43506102]
[1763173132925,3.06,142.56,142.54,0.05059763]
[1763173134124,3.06,142.55,142.5,8.58113717]
[1763173134324,3.06,142.55,142.49,8.58113717]
[1763173135227,3.06,142.52,142.51,0.04848908]
[1763173135927,3.06,142.51,142.47,8.58113717]
[1763173136822,0.05154065,142.5,142.47,8.58113717]
[1763173137029,3.06,142.49,142.48,0.04988116]
[1763173142033,3.06,142.49,142.44,8.58113717]
[1763173143134,3.06,142.47,142.45,0.05337017]
[1763173144328,3.06,142.47,142.41,8.58113717]
[1763173145325,3.06,142.47,142.43,0.05228715]
[1763173146741,3.06,142.47,142.38,8.58113717]
[1763173147035,2.76399451,142.48,142.38,8.58113717]
[1763173147036,3.03,142.45,142.38,8.58113717]
[1763173147232,3.03,142.43,142.37,8.58113717]
[1763173147537,3.03,142.43,142.36,8.58113717]
[1763173147734,0.04896238,142.41,142.38,0.04656896]
[1763173147933,3.03,142.4,142.38,0.04656896]
[1763173154746,3.18,142.39,142.33,2.710407]
[1763173155645,3.18,142.39,142.31,3.180407]
[1763173155843,3.18,142.35,142.34,0.04474776]
[1763173158036,3.18,142.35,142.28,2.710407]
[1763173158940,3.18,142.35,142.29,1.73902782]
[1763173159142,3.18,142.32,142.31,0.0517272]
[1763173162453,0.05001909,142.33,142.31,0.0517272]
[1763173162454,3.23001909,142.33,142.31,1.79075502]
[1763173163249,3.23001909,142.33,142.31,0.0517272]
[1763173165045,3.23001909,142.33,142.27,1.73902782]
[1763173165353,3.18,142.33,142.26,1.73902782]
[1763173165740,3.18,142.33,142.28,1.73902782]
[1763173166051,3.18,142.31,142.29,0.0520779]
[1763173177256,2.92087011,142.32,142.29,2.36110572]
[1763173177456,2.92087011,142.32,142.31,1.73902782]
[1763173178054,5.97087011,142.32,142.31,1.73902782]
[1763173178260,5.97087011,142.32,142.29,2.36110572]
[1763173178863,3.05,142.31,142.29,2.36110572]
[1763173179163,5.97087011,142.32,142.29,2.36110572]
[1763173180355,2.92087011,142.32,142.3,0.57]
[1763173180556,2.92087011,142.32,142.31,1.73902782]
[1763173181160,3.05,142.31,142.29,1.79110572]
[1763173182766,3.05,142.31,142.29,0.0520779]
[1763173186766,3.05,142.31,142.19,34.43758428]
[1763173186767,3.05,142.29,142.2,0.62]
[1763173186968,3.05,142.29,142.21,1.73902782]
[1763173187272,3.05,142.27,142.21,1.73902782]
[1763173187963,3.05,142.24,142.21,1.73902782]
[1763173189064,3.05,142.24,142.21,2.35902782]
[1763173189370,0.04480644,142.25,142.24,0.62]
[1763173190157,3.05,142.24,142.15,1.73902782]
[1763173190359,3.05,142.2,142.13,10.32016499]
[1763173190561,3.05,142.17,142.13,1.73902782]
[1763173190760,3.05,142.17,142.11,1.73902782]
[1763173192373,3.05,142.17,142.14,1.73902782]
[1763173192566,3.10343179,142.17,142.14,1.73902782]
[1763173192863,3.10343179,142.17,142.11,4.35747698]
[1763173194570,3.10343179,142.17,142.1,0.62]
[1763173196263,3.10343179,142.17,142.11,4.35747698]
[1763173196459,3.10343179,142.17,142.11,4.97747698]
[1763173199174,3.10343179,142.17,142.12,0.62]
[1763173201077,3.10343179,142.17,142.11,4.35747698]
[1763173201277,3.10343179,142.17,142.09,0.62]
[1763173201481,0.05378713,142.14,142.09,0.62]
[1763173202279,3.10378713,142.14,142.09,0.62]
[1763173202480,3.10378713,142.14,142.07,4.35747698]
[1763173203178,3.10378713,142.14,142.07,4.97747698]
[1763173204375,3.10378713,142.14,142.08,0.63]
[1763173204580,0.05378713,142.14,142.11,0.63]
[1763173204777,3.20343174,142.14,142.1,4.98747698]
[1763173205680,2.88,142.13,142.1,4.98747698]
[1763173208685,6.03,142.13,142.1,4.98747698]
[1763173210189,3.15,142.12,142.06,0.63]
[1763173210385,3.29339124,142.1,142.06,0.63]
[1763173212088,0.05339124,142.1,142.08,0.62]
[1763173214986,0.05339124,142.1,142.09,2.36341978]
[1763173217199,2.88,142.13,142.1,0.62]
[1763173217405,2.88,142.13,142.12,2.36341978]
[1763173217995,3.24,142.2,142.13,0.62]
[1763173218200,3.24,142.2,142.18,1.74341978]
[1763173218401,0.04964734,142.2,142.18,1.74341978]
[1763173218707,0.04964734,142.2,142.18,2.36341978]
[1763173218909,0.04964734,142.2,142.18,3.34113126]
[1763173219507,3.28964734,142.2,142.18,2.72113126]
[1763173220411,0.04964734,142.2,142.18,2.72113126]
[1763173220709,0.04964734,142.2,142.18,3.34113126]
[1763173221208,3.28964734,142.2,142.18,2.72113126]
[1763173222806,0.04964734,142.2,142.18,3.34113126]
[1763173223509,3.28964734,142.2,142.17,0.62]
[1763173225112,0.04964734,142.2,142.17,0.62]
[1763173225317,0.04964734,142.2,142.15,0.05227559]
[1763173225318,0.04964734,142.2,142.19,0.62]
[1763173226013,3.24,142.24,142.19,0.62]
[1763173226309,3.24,142.24,142.21,0.62]
[1763173226898,3.24,142.27,142.23,0.62]
[1763173227099,3.28784637,142.26,142.24,0.04714455]
[1763173227295,3.28916828,142.26,142.24,0.04714455]
[1763173228305,0.04916828,142.26,142.24,0.66714455]
[1763173230011,3.28916828,142.26,142.24,0.04714455]
[1763173230808,0.04916828,142.26,142.24,0.66714455]
[1763173231809,3.24,142.3,142.24,0.66714455]
[1763173232204,3.24,142.33,142.25,0.62]
[1763173232605,0.04691258,142.3,142.28,0.66430855]
[1763173232803,3.24,142.36,142.28,0.62]
[1763173233005,3.24,142.36,142.28,0.66902769]
[1763173233206,3.28870088,142.33,142.28,0.66902769]
[1763173233406,3.28870088,142.33,142.29,0.67069859]
[1763173234502,3.28870088,142.33,142.29,0.05069859]
[1763173235212,3.28870088,142.33,142.29,0.67069859]
[1763173235906,3.28870088,142.33,142.29,0.05069859]
[1763173237216,3.28870088,142.33,142.29,0.67069859]
[1763173237420,3.28870088,142.33,142.29,0.05069859]
[1763173239017,0.04870088,142.33,142.29,0.67069859]
[1763173239313,3.37870088,142.33,142.29,0.67069859]
[1763173239509,0.04870088,142.33,142.29,0.67069859]
[1763173239918,3.37870088,142.33,142.29,0.67069859]
[1763173241612,0.04870088,142.33,142.29,0.67069859]
[1763173241914,3.37870088,142.33,142.29,0.67069859]
[1763173242714,0.04870088,142.33,142.29,0.67069859]
[1763173244209,3.37870088,142.33,142.29,0.67069859]
[1763173246113,3.37870088,142.33,142.29,0.05069859]
[1763173253719,3.33,142.32,142.29,0.05069859]
[1763173254818,3.33,142.31,142.29,0.05069859]
[1763173255320,4.73,142.31,142.29,0.05069859]
[1763173255524,3.33,142.3,142.29,0.05069859]
[1763173255721,3.33,142.3,142.23,2.71839316]
[1763173256719,3.33,142.27,142.25,0.05275393]
[1763173262027,3.33,142.27,142.2,2.71839316]
[1763173262319,3.33,142.26,142.2,2.71839316]
[1763173263125,3.33,142.23,142.22,0.04726288]
[1763173267325,3.33,142.23,142.16,9.10714564]
[1763173267628,3.33,142.23,142.16,2.71839316]
[1763173268226,0.05368052,142.21,142.16,2.71839316]
[1763173268528,3.13,142.2,142.16,2.71839316]
[1763173268723,3.13,142.2,142.13,6.38875248]
[1763173268923,3.13,142.17,142.13,2.71839316]
[1763173269124,3.17656454,142.16,142.13,3.44839316]
[1763173269429,3.18092873,142.16,142.13,3.44839316]
[1763173269637,0.05092873,142.16,142.15,3.44839316]
[1763173270323,0.05092873,142.16,142.14,0.73]
[1763173272229,3.17092873,142.16,142.13,2.71839316]
[1763173272422,3.17092873,142.16,142.13,3.44839316]
[1763173273140,3.17092873,142.16,142.12,0.73]
[1763173274426,3.17092873,142.16,142.11,2.71839316]
[1763173275029,3.17092873,142.16,142.11,3.44839316]
[1763173277432,3.17092873,142.16,142.09,2.71839316]
[1763173277628,3.12,142.13,142.09,2.71839316]
[1763173278030,3.12,142.13,142.07,2.71839316]
[1763173278231,2.71839316,142.17,142.07,3.44839316]
[1763173278232,3.17237375,142.11,142.07,3.44839316]
[1763173279337,3.17237375,142.11,142.08,0.73]
[1763173279942,3.17237375,142.11,142.05,0.73]
[1763173280141,3.17237375,142.11,142.05,3.44839316]
[1763173280829,3.17237375,142.11,142.07,1.74447408]
[1763173286530,3.17237375,142.11,142.08,0.73]
[1763173286747,3.17237375,142.11,142.07,1.74447408]
[1763173287445,3.17237375,142.11,142.07,2.47447408]
[1763173289743,3.17237375,142.11,142.04,1.74447408]
[1763173290048,0.05068732,142.09,142.07,0.73]
[1763173290353,0.0475193,142.09,142.08,1.74447408]
[1763173290745,3.1675193,142.09,142.06,2.47447408]
[1763173292947,3.1675193,142.09,142.03,0.73]
[1763173293139,3.12,142.09,142.05,1.74447408]
[1763173293446,3.17361185,142.07,142.05,1.74447408]
[1763173293746,3.16792199,142.07,142.05,1.74447408]
[1763173295238,3.16792199,142.07,142.0,0.73]
[1763173295438,3.16792199,142.07,142.02,1.74447408]
[1763173295652,3.16792199,142.07,142.02,2.47447408]
[1763173296344,3.16792199,142.07,142.02,0.73]
[1763173296648,3.16792199,142.07,142.02,1.74447408]
[1763173297245,3.16792199,142.07,142.02,2.47447408]
[1763173297447,3.16792199,142.07,142.02,1.74447408]
[1763173300041,3.16792199,142.07,142.0,0.73]
[1763173300250,3.16792199,142.07,142.01,1.74447408]
[1763173301447,0.04792199,142.07,142.06,0.73]
[1763173301642,0.04573222,142.08,142.06,0.73]
[1763173301837,3.07573222,142.08,142.06,0.73]
[1763173302039,3.07573222,142.08,142.05,1.74447408]
[1763173302040,3.07573222,142.08,142.05,2.47447408]
[1763173302445,3.07573222,142.08,142.05,1.74447408]
[1763173305557,0.04573222,142.08,142.06,0.73]
[1763173306756,3.07573222,142.08,142.05,2.47447408]
[1763173307852,3.07573222,142.08,142.07,2.47447408]
[1763173307853,0.04573222,142.08,142.07,2.47447408]
[1763173308054,3.03,142.13,142.08,0.73]
[1763173308252,3.03,142.13,142.09,2.47447408]
[1763173308957,0.04468382,142.12,142.11,1.74447408]
[1763173309161,0.04468382,142.12,142.11,2.47447408]
[1763173309362,0.04468382,142.12,142.11,0.73]
[1763173310661,3.03,142.2,142.12,0.73]
[1763173310871,3.03,142.2,142.16,0.73]
[1763173311562,3.08177752,142.19,142.17,0.04465234]
[1763173311767,0.04944888,142.19,142.17,0.04465234]
[1763173311964,0.04944888,142.19,142.17,1.78912642]
[1763173312155,3.07944888,142.19,142.17,0.04465234]
[1763173313264,3.07944888,142.19,142.1,7.11875248]
[1763173313465,3.03,142.19,142.12,1.74447408]
[1763173314266,3.03,142.16,142.14,0.05345328]
[1763173321280,3.08294699,142.17,142.14,0.78345328]
[1763173321478,3.08294699,142.17,142.14,0.05345328]
[1763173322874,3.03,142.23,142.16,0.73]
[1763173323077,3.03,142.23,142.2,0.73]
[1763173323378,3.03,142.28,142.22,0.73]
[1763173323970,3.33230776,142.26,142.24,0.05336531]
[1763173324679,0.05230776,142.26,142.24,0.76336531]
[1763173324878,0.05230776,142.26,142.25,2.45447408]
[1763173326875,0.05230776,142.26,142.25,0.71]
[1763173328180,0.05230776,142.26,142.25,2.45447408]
[1763173329168,0.05230776,142.26,142.24,0.05336531]
[1763173329372,0.05230776,142.26,142.24,0.76336531]
[1763173337595,0.05230776,142.26,142.25,0.72]
[1763173339697,3.19230776,142.26,142.24,0.05336531]
[1763173339993,0.05230776,142.26,142.24,0.77336531]
[1763173343000,3.19230776,142.26,142.24,0.05336531]
[1763173347906,0.05230776,142.26,142.24,0.77336531]
[1763173349297,5.85965178,142.33,142.24,0.77336531]
[1763173349495,3.14,142.32,142.24,0.72]
[1763173350401,0.04987112,142.29,142.27,0.76991176]
[1763173354208,0.04987112,142.29,142.27,0.77991176]
[1763173354804,3.34987112,142.29,142.27,0.04991176]
[1763173355413,0.04987112,142.29,142.27,0.77991176]
[1763173357009,3.34987112,142.29,142.27,0.04991176]
[1763173359814,0.04987112,142.29,142.28,0.73]
[1763173361109,0.04987112,142.29,142.27,0.04991176]
[1763173361308,0.04987112,142.29,142.27,0.77991176]
[1763173364220,3.34987112,142.29,142.27,0.04991176]
[1763173365518,0.04987112,142.29,142.27,0.77991176]
[1763173365816,3.34987112,142.29,142.27,0.04991176]
[1763173372229,0.04987112,142.29,142.27,0.77991176]
[1763173372422,0.04987112,142.29,142.27,7.25249071]
[1763173372825,0.04987112,142.29,142.28,0.73]
[1763173373024,0.04987112,142.29,142.28,7.20257895]
[1763173385840,0.04987112,142.29,142.28,0.73]
[1763173386744,3.3,142.31,142.28,0.73]
[1763173386946,3.3,142.31,142.29,7.20561708]
[1763173387141,3.24,142.33,142.29,7.20561708]
[1763173387347,3.24,142.33,142.3,0.73]
[1763173387745,3.29086651,142.33,142.3,0.78119551]
[1763173390361,3.29086651,142.33,142.3,7.25681259]
[1763173397056,3.1,142.38,142.32,6.47561708]
[1763173397352,3.1,142.38,142.34,0.73]
[1763173398054,3.94257097,142.41,142.35,0.04760539]
[1763173398055,0.05315447,142.37,142.35,0.04760539]
[1763173398358,3.15315447,142.37,142.35,0.04760539]
[1763173401351,4.55315447,142.37,142.35,0.04760539]
[1763173401555,3.1,142.36,142.35,0.04760539]
[1763173402055,4.5,142.36,142.35,0.04760539]
[1763173403158,3.1,142.36,142.35,0.04760539]
[1763173404055,3.15315447,142.37,142.35,0.04760539]
[1763173405760,5.88,142.44,142.37,0.73]
[1763173406064,3.1,142.43,142.4,1.73802299]
[1763173406755,3.15130581,142.43,142.4,1.78524806]
[1763173408558,3.15130581,142.43,142.4,0.04722507]
[1763173412561,3.15130581,142.43,142.4,0.77722507]
[1763173412870,3.15130581,142.43,142.4,0.04722507]
[1763173420763,3.14,142.4,142.35,1.73802299]
[1763173420969,3.14,142.4,142.35,2.48802299]
[1763173421173,3.14,142.4,142.37,1.73802299]
[1763173421564,3.14,142.4,142.37,2.48802299]
[1763173421767,3.18733161,142.4,142.37,2.53525368]
[1763173421961,0.04733161,142.4,142.38,2.48802299]
[1763173422273,0.04733161,142.4,142.39,0.75]
[1763173425977,0.04733161,142.4,142.38,2.48802299]
[1763173426175,0.04733161,142.4,142.39,0.75]
[1763173427274,3.18733161,142.4,142.38,2.48802299]
[1763173427475,3.18733161,142.4,142.37,2.53525368]
[1763173427776,3.18733161,142.4,142.38,0.75]
[1763173428178,3.18733161,142.4,142.37,1.78525368]
[1763173429075,3.18733161,142.4,142.37,0.79723069]
[1763173429380,3.18733161,142.4,142.37,0.04723069]
[1763173432381,3.14,142.38,142.37,0.04723069]
[1763173435479,3.14,142.39,142.37,0.79723069]
[1763173435778,3.18733161,142.4,142.37,0.04723069]
[1763173436579,3.18733161,142.4,142.37,0.79723069]
[1763173438277,3.18733161,142.4,142.37,0.04723069]
[1763173438975,1.73802299,142.39,142.37,0.04723069]
[1763173439180,3.14,142.38,142.37,0.04723069]
[1763173439877,3.14,142.38,142.32,7.21248683]
[1763173440079,3.14,142.36,142.32,7.21248683]
[1763173440875,3.19205734,142.35,142.33,0.0459175]
[1763173444482,4.93008033,142.35,142.33,0.0459175]
[1763173444786,3.35,142.34,142.33,0.0459175]
[1763173444979,0.05205734,142.35,142.33,0.8159175]
[1763173449185,1.73802299,142.41,142.35,0.77]
[1763173449489,6.13,142.42,142.36,0.77]
[1763173450189,6.13,142.42,142.35,6.46248683]
[1763173450190,3.35,142.4,142.35,0.77]
[1763173450584,0.05230999,142.39,142.36,0.81506831]
[1763173450884,3.10230999,142.39,142.36,0.81506831]
[1763173451786,3.10230999,142.39,142.36,0.04506831]
[1763173452781,4.84033298,142.39,142.36,0.04506831]
[1763173452984,3.05,142.38,142.36,0.04506831]
[1763173453788,3.05,142.37,142.36,0.04506831]
[1763173461390,3.05,142.37,142.32,6.46248683]
[1763173461391,3.05,142.36,142.3,1.73802299]
[1763173461587,3.05,142.35,142.29,6.46248683]
[1763173461799,3.05,142.33,142.28,6.46248683]
[1763173462098,3.05,142.33,142.27,8.20050982]
[1763173462300,3.09822217,142.31,142.29,0.04774984]
[1763173464594,0.04822217,142.31,142.29,2.59577283]
[1763173464894,0.04822217,142.31,142.29,0.85774984]
[1763173466811,3.09822217,142.31,142.29,0.04774984]
[1763173467706,0.04822217,142.31,142.29,0.85774984]
[1763173468702,0.04822217,142.31,142.29,3.57525519]
[1763173468900,0.04822217,142.31,142.3,0.81]
[1763173469094,0.04822217,142.31,142.29,3.57525519]
[1763173469297,3.09822217,142.31,142.29,2.76525519]
[1763173469902,3.09822217,142.31,142.29,0.04774984]
[1763173472397,0.04822217,142.31,142.29,2.76525519]
[1763173473404,3.09822217,142.31,142.29,2.76525519]
[1763173474303,3.09822217,142.31,142.29,0.04774984]
[1763173484202,3.31822217,142.31,142.29,0.04774984]
[1763173486617,0.04822217,142.31,142.29,0.86774984]
[1763173486913,3.27,142.34,142.3,3.53750535]
[1763173487110,3.27,142.34,142.31,0.82]
[1763173488015,3.31845797,142.34,142.31,0.82]
[1763173490215,3.31845797,142.34,142.3,2.71750535]
[1763173490517,3.31845797,142.34,142.29,10.04774202]
[1763173490714,3.31845797,142.34,142.29,3.58525519]
[1763173490914,3.31845797,142.34,142.3,0.82]
[1763173492722,3.31845797,142.34,142.29,2.76525519]